[Event "*** Titled Tuesday Blitz"]
[Site "Chess.com"]
[Date "2021.02.02"]
[Round "1"]
[White "Orest_Vovk"]
[Black "exoticprincess"]
[Result "1-0"]
[WhiteElo "2467"]
[BlackElo "2857"]
[TimeControl "180+1"]
[EndTime "10:06:09 PST"]
[Termination "Orest_Vovk won by resignation"]

1. g4 {[%clk 0:02:58]} 1... d5 {[%clk 0:02:58.9]} 2. h3 {[%clk 0:02:56.2]} 2...
c6 {[%clk 0:02:59]} 3. Bg2 {[%clk 0:02:56.6]} 3... e5 {[%clk 0:02:59.2]} 4. d4
{[%clk 0:02:57]} 4... e4 {[%clk 0:02:58.1]} 5. c4 {[%clk 0:02:57.3]} 5... Be6
{[%clk 0:02:54.5]} 6. Nc3 {[%clk 0:02:57.5]} 6... Na6 {[%clk 0:02:51.4]} 7. Qb3
{[%clk 0:02:56.7]} 7... Bb4 {[%clk 0:02:47.7]} 8. cxd5 {[%clk 0:02:51.4]} 8...
Bxd5 {[%clk 0:02:46.6]} 9. Qc2 {[%clk 0:02:38.6]} 9... e3 {[%clk 0:02:46.5]} 10.
Bxd5 {[%clk 0:02:33.4]} 10... exf2+ {[%clk 0:02:46.1]} 11. Kxf2 {[%clk
0:02:33.3]} 11... cxd5 {[%clk 0:02:47]} 12. Qa4+ {[%clk 0:02:29.8]} 12... Kf8
{[%clk 0:02:46.7]} 13. Nf3 {[%clk 0:02:17.6]} 13... Nf6 {[%clk 0:02:46.8]} 14.
Bg5 {[%clk 0:02:14]} 14... Bxc3 {[%clk 0:02:35.4]} 15. Bxf6 {[%clk 0:02:11.7]}
15... Qxf6 {[%clk 0:02:36.3]} 16. bxc3 {[%clk 0:02:11]} 16... Re8 {[%clk
0:02:36.9]} 17. Qd7 {[%clk 0:01:58.9]} 17... Qe7 {[%clk 0:02:33.9]} 18. Qxd5
{[%clk 0:01:34.4]} 18... h5 {[%clk 0:02:27.2]} 19. Ne5 {[%clk 0:01:13]} 19...
Rh6 {[%clk 0:02:27.2]} 20. Kg2 {[%clk 0:01:01.6]} 20... Nc7 {[%clk 0:02:15.2]}
21. Qb3 {[%clk 0:00:49.6]} 21... Rb6 {[%clk 0:02:11.1]} 22. Qc4 {[%clk
0:00:45.1]} 22... Kg8 {[%clk 0:02:02.5]} 23. Raf1 {[%clk 0:00:43.3]} 23... Re6
{[%clk 0:02:02.6]} 24. Rxf7 {[%clk 0:00:33]} 24... Qg5 {[%clk 0:02:00.8]} 25.
Qxc7 {[%clk 0:00:29.7]} 25... h4 {[%clk 0:01:50.7]} 26. Rhf1 {[%clk 0:00:25.2]}
26... Qh6 {[%clk 0:01:15.9]} 27. R1f5 {[%clk 0:00:21.6]} 27... g6 {[%clk
0:01:09.1]} 28. R5f6 {[%clk 0:00:15.5]} 28... Qe3 {[%clk 0:01:00.1]} 29. Rg7+
{[%clk 0:00:13.3]} 1-0

[Event "*** Titled Tuesday Blitz"]
[Site "Chess.com"]
[Date "2021.02.02"]
[Round "1"]
[White "marvinguevara"]
[Black "r31415"]
[Result "0-1"]
[WhiteElo "2130"]
[BlackElo "2510"]
[TimeControl "180+1"]
[EndTime "10:06:10 PST"]
[Termination "r31415 won by checkmate"]

1. e4 {[%clk 0:02:59.6]} 1... c6 {[%clk 0:02:36.1]} 2. d4 {[%clk 0:02:57.8]}
2... d5 {[%clk 0:02:36.3]} 3. exd5 {[%clk 0:02:57.6]} 3... cxd5 {[%clk 0:02:36]}
4. c4 {[%clk 0:02:58.2]} 4... Nf6 {[%clk 0:02:36.5]} 5. Nc3 {[%clk 0:02:57.8]}
5... e6 {[%clk 0:02:37]} 6. c5 {[%clk 0:02:56.9]} 6... b6 {[%clk 0:02:30.5]} 7.
b4 {[%clk 0:02:52.4]} 7... a5 {[%clk 0:02:27.7]} 8. Na4 {[%clk 0:02:44.4]} 8...
Nfd7 {[%clk 0:02:10.5]} 9. Bb5 {[%clk 0:02:21.6]} 9... Ba6 {[%clk 0:01:45.6]}
10. Bxa6 {[%clk 0:02:00.7]} 10... Nxa6 {[%clk 0:01:42.6]} 11. b5 {[%clk
0:01:59.8]} 11... Nc7 {[%clk 0:01:43.1]} 12. Be3 {[%clk 0:01:27.6]} 12... Nxb5
{[%clk 0:01:39.1]} 13. Qb3 {[%clk 0:01:23.9]} 13... Na7 {[%clk 0:01:16.2]} 14.
cxb6 {[%clk 0:01:11.6]} 14... Rb8 {[%clk 0:01:16.3]} 15. Bf4 {[%clk 0:01:04.8]}
15... Rb7 {[%clk 0:01:10.4]} 16. bxa7 {[%clk 0:00:34.3]} 16... Rxb3 {[%clk
0:01:08.1]} 17. axb3 {[%clk 0:00:33.8]} 17... Bb4+ {[%clk 0:01:08.9]} 18. Ke2
{[%clk 0:00:23.1]} 18... Qc8 {[%clk 0:01:07.9]} 19. Bb8 {[%clk 0:00:17.5]} 19...
Qa6+ {[%clk 0:01:02.7]} 20. Kf3 {[%clk 0:00:16.6]} 20... O-O {[%clk 0:01:03.6]}
21. Ne2 {[%clk 0:00:08]} 21... Qd3+ {[%clk 0:00:57.3]} 22. Kf4 {[%clk
0:00:04.6]} 22... Bd2+ {[%clk 0:00:55.4]} 23. Kg4 {[%clk 0:00:01.8]} 23... Nf6+
{[%clk 0:00:48.1]} 24. Kh4 {[%clk 0:00:01.7]} 24... g5# {[%clk 0:00:47.8]} 0-1

[Event "*** Titled Tuesday Blitz"]
[Site "Chess.com"]
[Date "2021.02.02"]
[Round "1"]
[White "chessablanca"]
[Black "ailime26"]
[Result "1-0"]
[WhiteElo "2497"]
[BlackElo "2056"]
[TimeControl "180+1"]
[EndTime "10:06:10 PST"]
[Termination "chessablanca won on time"]

1. Nf3 {[%clk 0:02:58.5]} 1... d5 {[%clk 0:02:56.6]} 2. c4 {[%clk 0:02:52.6]}
2... c6 {[%clk 0:02:45.3]} 3. e3 {[%clk 0:02:52.7]} 3... Nf6 {[%clk 0:02:41.6]}
4. Nc3 {[%clk 0:02:52.1]} 4... e6 {[%clk 0:02:41.6]} 5. d4 {[%clk 0:02:52]} 5...
Be7 {[%clk 0:02:41.2]} 6. Be2 {[%clk 0:02:50.8]} 6... O-O {[%clk 0:02:41.5]} 7.
O-O {[%clk 0:02:50.7]} 7... Nbd7 {[%clk 0:02:32.8]} 8. Qc2 {[%clk 0:02:49]} 8...
b6 {[%clk 0:02:28.6]} 9. b3 {[%clk 0:02:39.8]} 9... Bb7 {[%clk 0:02:01.3]} 10.
Bb2 {[%clk 0:02:39.3]} 10... c5 {[%clk 0:01:55.3]} 11. Rfd1 {[%clk 0:02:32.5]}
11... Rc8 {[%clk 0:01:36.4]} 12. Rac1 {[%clk 0:02:19]} 12... Qc7 {[%clk
0:01:16.2]} 13. dxc5 {[%clk 0:02:11.3]} 13... Nxc5 {[%clk 0:01:14.5]} 14. Nb5
{[%clk 0:02:11.1]} 14... Qb8 {[%clk 0:01:02.5]} 15. Be5 {[%clk 0:02:10.3]} 15...
Qa8 {[%clk 0:00:55.7]} 16. Nc7 {[%clk 0:02:08.9]} 16... Rxc7 {[%clk 0:00:55.4]}
17. Bxc7 {[%clk 0:02:09.8]} 17... dxc4 {[%clk 0:00:54.7]} 18. bxc4 {[%clk
0:02:08]} 18... Be4 {[%clk 0:00:54.7]} 19. Qb2 {[%clk 0:02:04.7]} 19... Na4
{[%clk 0:00:45.7]} 20. Qa1 {[%clk 0:01:50.2]} 20... Qc6 {[%clk 0:00:39.8]} 21.
Be5 {[%clk 0:01:45.4]} 21... Rc8 {[%clk 0:00:30]} 22. Nd4 {[%clk 0:01:39.4]}
22... Qc5 {[%clk 0:00:22.5]} 23. Nb3 {[%clk 0:01:37.1]} 23... Qa3 {[%clk
0:00:19.3]} 24. f3 {[%clk 0:01:33.4]} 24... Bg6 {[%clk 0:00:16.1]} 25. Bd3
{[%clk 0:01:27.1]} 25... Bxd3 {[%clk 0:00:03.7]} 26. Rxd3 {[%clk 0:01:28]} 26...
Ne8 {[%clk 0:00:02.1]} 27. Rd7 {[%clk 0:01:24.9]} 27... Bg5 {[%clk 0:00:01.3]}
28. f4 {[%clk 0:01:24.1]} 28... Be7 {[%clk 0:00:01.6]} 29. Rxa7 {[%clk
0:01:21.6]} 29... f6 {[%clk 0:00:01.2]} 30. Bb2 {[%clk 0:01:09.3]} 1-0

[Event "*** Titled Tuesday Blitz"]
[Site "Chess.com"]
[Date "2021.02.02"]
[Round "1"]
[White "SHIVACalypso"]
[Black "ftorodent"]
[Result "0-1"]
[WhiteElo "2375"]
[BlackElo "2700"]
[TimeControl "180+1"]
[EndTime "10:06:11 PST"]
[Termination "ftorodent won by resignation"]

1. Nf3 {[%clk 0:02:58.9]} 1... d5 {[%clk 0:02:59.2]} 2. c4 {[%clk 0:02:59.8]}
2... e6 {[%clk 0:02:58.9]} 3. g3 {[%clk 0:02:59]} 3... Nf6 {[%clk 0:02:58.4]} 4.
Bg2 {[%clk 0:02:59.4]} 4... Be7 {[%clk 0:02:58.8]} 5. O-O {[%clk 0:02:59.2]}
5... O-O {[%clk 0:02:59.4]} 6. d4 {[%clk 0:02:58.2]} 6... c6 {[%clk 0:02:57.5]}
7. Nc3 {[%clk 0:02:56.1]} 7... Nbd7 {[%clk 0:02:51.1]} 8. Qc2 {[%clk 0:02:53.4]}
8... dxc4 {[%clk 0:02:49.3]} 9. Nd2 {[%clk 0:02:52.3]} 9... Nb6 {[%clk
0:02:46.4]} 10. e3 {[%clk 0:02:47.8]} 10... c5 {[%clk 0:02:43.9]} 11. Ne2 {[%clk
0:02:45]} 11... cxd4 {[%clk 0:02:38.4]} 12. Nxd4 {[%clk 0:02:45.9]} 12... e5
{[%clk 0:02:31.5]} 13. Nb5 {[%clk 0:02:40.2]} 13... a6 {[%clk 0:02:21.2]} 14.
Nc3 {[%clk 0:02:36.9]} 14... Qc7 {[%clk 0:02:13.8]} 15. Nde4 {[%clk 0:02:21]}
15... Nxe4 {[%clk 0:02:10.5]} 16. Nxe4 {[%clk 0:02:21.9]} 16... Be6 {[%clk
0:02:05.7]} 17. Bd2 {[%clk 0:02:21.5]} 17... f5 {[%clk 0:02:02.8]} 18. Nc3
{[%clk 0:02:13.1]} 18... Rad8 {[%clk 0:02:00.7]} 19. Rfd1 {[%clk 0:02:11.6]}
19... Bf6 {[%clk 0:01:45.7]} 20. Rac1 {[%clk 0:02:10.3]} 20... Rd7 {[%clk
0:01:43.2]} 21. Na4 {[%clk 0:01:51.8]} 21... Nd5 {[%clk 0:01:33.3]} 22. b3
{[%clk 0:01:38.8]} 22... b5 {[%clk 0:01:26.9]} 23. bxc4 {[%clk 0:01:38.6]} 23...
bxc4 {[%clk 0:01:26.7]} 24. a3 {[%clk 0:01:16.7]} 24... Rc8 {[%clk 0:01:23.2]}
25. Bb4 {[%clk 0:01:15.6]} 25... Nxb4 {[%clk 0:01:21.6]} 26. axb4 {[%clk
0:01:16.5]} 26... Rxd1+ {[%clk 0:01:19.2]} 27. Rxd1 {[%clk 0:01:16.6]} 27... Be7
{[%clk 0:01:18.6]} 28. Qc3 {[%clk 0:01:03.8]} 28... Rb8 {[%clk 0:01:17.4]} 29.
Bd5 {[%clk 0:00:51.8]} 29... Bxd5 {[%clk 0:01:16.9]} 30. Rxd5 {[%clk 0:00:52.7]}
30... Bxb4 {[%clk 0:01:13.8]} 31. Qxe5 {[%clk 0:00:44.5]} 31... Qxe5 {[%clk
0:01:13.7]} 32. Rxe5 {[%clk 0:00:45.4]} 32... c3 {[%clk 0:01:12.6]} 33. Re6
{[%clk 0:00:31.9]} 33... c2 {[%clk 0:01:09.8]} 34. Rc6 {[%clk 0:00:31.1]} 34...
Bc3 {[%clk 0:01:09.4]} 35. Rxc3 {[%clk 0:00:27.3]} 35... Rb1+ {[%clk 0:01:09.2]}
36. Kg2 {[%clk 0:00:27.6]} 36... c1=Q {[%clk 0:01:09.3]} 37. Rxc1 {[%clk
0:00:27.4]} 37... Rxc1 {[%clk 0:01:09.6]} 38. Nb6 {[%clk 0:00:25.1]} 38... a5
{[%clk 0:01:08.7]} 39. Nd5 {[%clk 0:00:22.3]} 0-1

[Event "*** Titled Tuesday Blitz"]
[Site "Chess.com"]
[Date "2021.02.02"]
[Round "1"]
[White "Oligan22"]
[Black "AntonovaNadezhda"]
[Result "1-0"]
[WhiteElo "2520"]
[BlackElo "2175"]
[TimeControl "180+1"]
[EndTime "10:06:15 PST"]
[Termination "Oligan22 won on time"]

1. e4 {[%clk 0:02:58.7]} 1... c5 {[%clk 0:02:58.9]} 2. Nf3 {[%clk 0:02:58]} 2...
d6 {[%clk 0:02:59.8]} 3. Bb5+ {[%clk 0:02:56.3]} 3... Nd7 {[%clk 0:02:58.4]} 4.
Ba4 {[%clk 0:02:55.8]} 4... a6 {[%clk 0:02:54]} 5. c4 {[%clk 0:02:53.9]} 5...
Nf6 {[%clk 0:02:48]} 6. Nc3 {[%clk 0:02:54]} 6... g6 {[%clk 0:02:43.3]} 7. O-O
{[%clk 0:02:54.1]} 7... Bg7 {[%clk 0:02:42.9]} 8. d3 {[%clk 0:02:44.8]} 8... O-O
{[%clk 0:02:41.2]} 9. a3 {[%clk 0:02:44.1]} 9... b6 {[%clk 0:02:36.4]} 10. h3
{[%clk 0:02:42.8]} 10... Bb7 {[%clk 0:02:35.8]} 11. Rb1 {[%clk 0:02:43.2]} 11...
Rc8 {[%clk 0:02:26.7]} 12. Be3 {[%clk 0:02:43.2]} 12... Qc7 {[%clk 0:02:08.1]}
13. Qd2 {[%clk 0:02:41.2]} 13... Rfd8 {[%clk 0:02:02.4]} 14. Rfc1 {[%clk
0:02:40.9]} 14... e6 {[%clk 0:02:01]} 15. b4 {[%clk 0:02:40]} 15... Qb8 {[%clk
0:01:47.6]} 16. Bh6 {[%clk 0:02:30]} 16... Bh8 {[%clk 0:01:44.8]} 17. Bf4 {[%clk
0:02:28.4]} 17... Ne5 {[%clk 0:01:33.2]} 18. Qe2 {[%clk 0:02:23.3]} 18... Nfd7
{[%clk 0:01:24.5]} 19. Bg5 {[%clk 0:02:13.8]} 19... Rf8 {[%clk 0:01:04.8]} 20.
bxc5 {[%clk 0:01:59]} 20... Nxf3+ {[%clk 0:00:49.2]} 21. Qxf3 {[%clk 0:01:55.1]}
21... Ne5 {[%clk 0:00:49]} 22. Qe2 {[%clk 0:01:49.8]} 22... bxc5 {[%clk
0:00:39.6]} 23. Be7 {[%clk 0:01:47.3]} 23... Nc6 {[%clk 0:00:34.7]} 24. Bxc6
{[%clk 0:01:39.9]} 24... Rxc6 {[%clk 0:00:32.2]} 25. Bxf8 {[%clk 0:01:39.6]}
25... Kxf8 {[%clk 0:00:32.6]} 26. Qb2 {[%clk 0:01:36.7]} 26... Rc7 {[%clk
0:00:30.7]} 27. Qb6 {[%clk 0:01:36.7]} 27... Qd8 {[%clk 0:00:25]} 28. Rb3 {[%clk
0:01:28.7]} 28... Bd4 {[%clk 0:00:22.1]} 29. Ne2 {[%clk 0:01:26]} 29... Bf6
{[%clk 0:00:19.3]} 30. Rcb1 {[%clk 0:01:26.1]} 30... Qd7 {[%clk 0:00:14.2]} 31.
Qa5 {[%clk 0:01:20.9]} 31... Bd8 {[%clk 0:00:11]} 32. Rxb7 {[%clk 0:01:08.7]}
32... Rxb7 {[%clk 0:00:06.1]} 33. Rxb7 {[%clk 0:01:09.6]} 1-0

[Event "*** Titled Tuesday Blitz"]
[Site "Chess.com"]
[Date "2021.02.02"]
[Round "1"]
[White "DrVelja"]
[Black "Angel_Hranitel_37"]
[Result "1-0"]
[WhiteElo "2902"]
[BlackElo "2460"]
[TimeControl "180+1"]
[EndTime "10:06:17 PST"]
[Termination "DrVelja won by resignation"]

1. e4 {[%clk 0:03:00.8]} 1... c6 {[%clk 0:02:59.5]} 2. d4 {[%clk 0:02:59.4]}
2... d5 {[%clk 0:02:59.6]} 3. exd5 {[%clk 0:03:00.3]} 3... cxd5 {[%clk
0:03:00.5]} 4. Bd3 {[%clk 0:03:00.5]} 4... Nc6 {[%clk 0:02:59.9]} 5. c3 {[%clk
0:03:00.6]} 5... Qc7 {[%clk 0:03:00.4]} 6. h3 {[%clk 0:03:00.1]} 6... e6 {[%clk
0:02:57.6]} 7. Nf3 {[%clk 0:02:59.9]} 7... Bd6 {[%clk 0:02:58.1]} 8. O-O {[%clk
0:03:00.4]} 8... Nge7 {[%clk 0:02:58.5]} 9. Re1 {[%clk 0:03:00]} 9... O-O {[%clk
0:02:58.6]} 10. Nbd2 {[%clk 0:02:18.7]} 10... Ng6 {[%clk 0:02:55.1]} 11. Nf1
{[%clk 0:02:16.1]} 11... b6 {[%clk 0:02:18.3]} 12. Qc2 {[%clk 0:02:11.9]} 12...
e5 {[%clk 0:02:11]} 13. dxe5 {[%clk 0:02:07.7]} 13... Ncxe5 {[%clk 0:02:11.9]}
14. Nxe5 {[%clk 0:02:05.6]} 14... Bxe5 {[%clk 0:02:12.8]} 15. Ne3 {[%clk
0:01:51.3]} 15... Be6 {[%clk 0:01:32.8]} 16. Nf5 {[%clk 0:01:50.1]} 16... Rac8
{[%clk 0:00:37.1]} 17. Be3 {[%clk 0:01:40.5]} 17... Bh2+ {[%clk 0:00:34.1]} 18.
Kh1 {[%clk 0:01:40.3]} 18... Ne5 {[%clk 0:00:34.5]} 19. Ba6 {[%clk 0:01:37.3]}
19... Rcd8 {[%clk 0:00:30.9]} 20. Bd4 {[%clk 0:01:35.7]} 20... Bf4 {[%clk
0:00:26.1]} 21. Nxg7 {[%clk 0:01:29.1]} 21... Kxg7 {[%clk 0:00:23.8]} 22. g3
{[%clk 0:01:29.7]} 22... f6 {[%clk 0:00:11.1]} 23. gxf4 {[%clk 0:01:29.4]} 23...
Nf3 {[%clk 0:00:12]} 24. Qd3 {[%clk 0:01:06]} 24... Nxd4 {[%clk 0:00:12.5]} 25.
Qxd4 {[%clk 0:01:04.9]} 25... Bxh3 {[%clk 0:00:09.6]} 26. Re3 {[%clk 0:01:03.2]}
26... Bf5 {[%clk 0:00:09.7]} 27. Rg1+ {[%clk 0:01:01.2]} 27... Kh8 {[%clk
0:00:09.9]} 28. Reg3 {[%clk 0:01:00.1]} 28... Rd7 {[%clk 0:00:09.9]} 29. Qxf6+
{[%clk 0:00:58.1]} 29... Rg7 {[%clk 0:00:08.2]} 30. Qxf8+ {[%clk 0:00:57.2]} 1-0

[Event "*** Titled Tuesday Blitz"]
[Site "Chess.com"]
[Date "2021.02.02"]
[Round "1"]
[White "kagg1125"]
[Black "Susik_Gaboyan"]
[Result "1-0"]
[WhiteElo "2583"]
[BlackElo "2281"]
[TimeControl "180+1"]
[EndTime "10:06:18 PST"]
[Termination "kagg1125 won on time"]

1. e4 {[%clk 0:03:00.9]} 1... c5 {[%clk 0:02:59.1]} 2. Nf3 {[%clk 0:03:00.5]}
2... Nc6 {[%clk 0:02:57.5]} 3. b4 {[%clk 0:02:59.2]} 3... Nxb4 {[%clk
0:02:49.5]} 4. c3 {[%clk 0:02:59.2]} 4... Nc6 {[%clk 0:02:49.2]} 5. d4 {[%clk
0:02:59.8]} 5... cxd4 {[%clk 0:02:48.3]} 6. cxd4 {[%clk 0:03:00.7]} 6... d6
{[%clk 0:02:48.8]} 7. d5 {[%clk 0:02:55.7]} 7... Ne5 {[%clk 0:02:45.8]} 8. Nxe5
{[%clk 0:02:54.5]} 8... dxe5 {[%clk 0:02:46.7]} 9. Bb2 {[%clk 0:02:49.5]} 9...
Qd6 {[%clk 0:02:41.1]} 10. Nc3 {[%clk 0:02:48.3]} 10... Bd7 {[%clk 0:02:37.5]}
11. Qb3 {[%clk 0:02:28.3]} 11... b6 {[%clk 0:02:32.7]} 12. Ba3 {[%clk
0:02:23.8]} 12... Qg6 {[%clk 0:02:13.8]} 13. g3 {[%clk 0:01:26.4]} 13... Nf6
{[%clk 0:02:10.7]} 14. Bg2 {[%clk 0:01:26.1]} 14... e6 {[%clk 0:02:10.9]} 15. d6
{[%clk 0:01:24.9]} 15... Bc6 {[%clk 0:01:58.9]} 16. Nb5 {[%clk 0:01:20.6]} 16...
Bxe4 {[%clk 0:01:50.8]} 17. Nc7+ {[%clk 0:01:12.9]} 17... Kd8 {[%clk 0:01:49.4]}
18. O-O {[%clk 0:00:54.4]} 18... Bxg2 {[%clk 0:01:32.8]} 19. Kxg2 {[%clk
0:00:55.3]} 19... Qe4+ {[%clk 0:01:33]} 20. f3 {[%clk 0:00:54.8]} 20... Qc6
{[%clk 0:01:21.7]} 21. Rac1 {[%clk 0:00:52.5]} 21... Qb7 {[%clk 0:01:20.2]} 22.
Nxa8 {[%clk 0:00:50.3]} 22... Qxa8 {[%clk 0:01:21.1]} 23. Rc7 {[%clk 0:00:43.8]}
1-0

[Event "*** Titled Tuesday Blitz"]
[Site "Chess.com"]
[Date "2021.02.02"]
[Round "1"]
[White "ChessWarrior7197"]
[Black "SharapovEvgeny"]
[Result "1-0"]
[WhiteElo "2905"]
[BlackElo "2461"]
[TimeControl "180+1"]
[EndTime "10:06:25 PST"]
[Termination "ChessWarrior7197 won by resignation"]

1. e4 {[%clk 0:02:59.6]} 1... c5 {[%clk 0:02:59.3]} 2. Nf3 {[%clk 0:02:58.8]}
2... d6 {[%clk 0:02:58.6]} 3. d4 {[%clk 0:02:58]} 3... cxd4 {[%clk 0:02:58.1]}
4. Nxd4 {[%clk 0:02:58.9]} 4... Nf6 {[%clk 0:02:57.6]} 5. Nc3 {[%clk 0:02:59]}
5... Nc6 {[%clk 0:02:57.4]} 6. Bg5 {[%clk 0:02:57.2]} 6... Qb6 {[%clk
0:02:56.8]} 7. Nb3 {[%clk 0:02:50]} 7... e6 {[%clk 0:02:56.2]} 8. Qd2 {[%clk
0:02:44]} 8... Be7 {[%clk 0:02:55.1]} 9. O-O-O {[%clk 0:02:42.6]} 9... O-O
{[%clk 0:02:54.4]} 10. f3 {[%clk 0:02:42.1]} 10... Rd8 {[%clk 0:02:53.7]} 11.
Bd3 {[%clk 0:01:50.6]} 11... d5 {[%clk 0:02:40.7]} 12. exd5 {[%clk 0:01:49.9]}
12... exd5 {[%clk 0:02:40.5]} 13. Kb1 {[%clk 0:01:47.4]} 13... a5 {[%clk
0:02:34.2]} 14. Na4 {[%clk 0:01:41.3]} 14... Qc7 {[%clk 0:02:31.7]} 15. g4
{[%clk 0:01:37.2]} 15... Nb4 {[%clk 0:02:22.7]} 16. Bf4 {[%clk 0:01:31.7]} 16...
Bd6 {[%clk 0:02:19.9]} 17. Bxd6 {[%clk 0:01:31.8]} 17... Rxd6 {[%clk 0:02:17.7]}
18. Nd4 {[%clk 0:01:30.5]} 18... Bd7 {[%clk 0:02:12.6]} 19. Bb5 {[%clk
0:01:30.9]} 19... Rc8 {[%clk 0:02:03.5]} 20. a3 {[%clk 0:01:30.8]} 20... Nc6
{[%clk 0:02:02.9]} 21. Bxc6 {[%clk 0:01:22.5]} 21... bxc6 {[%clk 0:01:58.2]} 22.
Nc5 {[%clk 0:01:22.3]} 22... Qb6 {[%clk 0:01:52.1]} 23. Qc3 {[%clk 0:01:22.3]}
23... Be6 {[%clk 0:01:19.1]} 24. Rhe1 {[%clk 0:01:20.9]} 24... Re8 {[%clk
0:01:11.5]} 25. g5 {[%clk 0:01:14.8]} 25... Nd7 {[%clk 0:01:10.6]} 26. Nf5
{[%clk 0:00:55]} 26... d4 {[%clk 0:01:07.8]} 27. Rxd4 {[%clk 0:00:55.4]} 27...
Qxc5 {[%clk 0:00:33]} 28. Qxc5 {[%clk 0:00:44.1]} 28... Nxc5 {[%clk 0:00:32.7]}
29. Rxd6 {[%clk 0:00:41.7]} 29... Nb7 {[%clk 0:00:19.3]} 30. Rdd1 {[%clk
0:00:40.5]} 1-0

[Event "*** Titled Tuesday Blitz"]
[Site "Chess.com"]
[Date "2021.02.02"]
[Round "1"]
[White "PawnEatingZombie"]
[Black "kikydu96"]
[Result "0-1"]
[WhiteElo "2242"]
[BlackElo "2556"]
[TimeControl "180+1"]
[EndTime "10:06:25 PST"]
[Termination "kikydu96 won by resignation"]

1. d4 {[%clk 0:03:00.9]} 1... Nf6 {[%clk 0:02:55.7]} 2. c4 {[%clk 0:03:00.4]}
2... g6 {[%clk 0:02:55.6]} 3. Nc3 {[%clk 0:02:59.5]} 3... Bg7 {[%clk 0:02:55.6]}
4. e4 {[%clk 0:02:59.1]} 4... d6 {[%clk 0:02:55.7]} 5. Be2 {[%clk 0:02:58.9]}
5... O-O {[%clk 0:02:55.9]} 6. Be3 {[%clk 0:02:58.5]} 6... e5 {[%clk 0:02:52.8]}
7. d5 {[%clk 0:02:58.4]} 7... a5 {[%clk 0:02:51.7]} 8. g4 {[%clk 0:02:58.6]}
8... Na6 {[%clk 0:02:49.8]} 9. h4 {[%clk 0:02:57.9]} 9... Nc5 {[%clk 0:02:46.9]}
10. f3 {[%clk 0:02:58.2]} 10... h5 {[%clk 0:02:45.6]} 11. g5 {[%clk 0:02:58.2]}
11... Nfd7 {[%clk 0:02:39]} 12. b3 {[%clk 0:02:57.2]} 12... f5 {[%clk
0:02:31.2]} 13. Nh3 {[%clk 0:02:39]} 13... fxe4 {[%clk 0:02:27.6]} 14. fxe4
{[%clk 0:02:37.1]} 14... Nb6 {[%clk 0:02:13.9]} 15. Nf2 {[%clk 0:02:27.4]} 15...
Bd7 {[%clk 0:02:07.8]} 16. Kf1 {[%clk 0:02:21.3]} 16... Qe7 {[%clk 0:01:56.6]}
17. Kg2 {[%clk 0:02:20.7]} 17... Rf7 {[%clk 0:01:49]} 18. Qc2 {[%clk 0:02:04.2]}
18... Raf8 {[%clk 0:01:47.5]} 19. Raf1 {[%clk 0:02:02.1]} 19... Rf4 {[%clk
0:01:42.6]} 20. Nh3 {[%clk 0:01:12.9]} 20... Rxh4 {[%clk 0:01:39]} 21. Rxf8+
{[%clk 0:01:07.2]} 21... Qxf8 {[%clk 0:01:38.7]} 22. Bxc5 {[%clk 0:00:42.8]}
22... dxc5 {[%clk 0:01:33.2]} 23. Nb5 {[%clk 0:00:43.7]} 23... Bxb5 {[%clk
0:01:10.1]} 24. cxb5 {[%clk 0:00:42.9]} 24... Nc8 {[%clk 0:01:10.7]} 25. Rf1
{[%clk 0:00:30.7]} 25... Qe7 {[%clk 0:01:10.3]} 26. Kg3 {[%clk 0:00:31]} 26...
Rxh3+ {[%clk 0:00:53.4]} 27. Kxh3 {[%clk 0:00:31.9]} 27... Nd6 {[%clk
0:00:50.7]} 28. Qxc5 {[%clk 0:00:22.2]} 28... Qxg5 {[%clk 0:00:49.2]} 29. Qxc7
{[%clk 0:00:21.1]} 29... Nxe4 {[%clk 0:00:49.3]} 30. Rg1 {[%clk 0:00:03.8]}
30... Qxg1 {[%clk 0:00:45.6]} 0-1

[Event "*** Titled Tuesday Blitz"]
[Site "Chess.com"]
[Date "2021.02.02"]
[Round "1"]
[White "szachuspl"]
[Black "MasterMK73"]
[Result "1-0"]
[WhiteElo "2541"]
[BlackElo "2217"]
[TimeControl "180+1"]
[EndTime "10:06:27 PST"]
[Termination "szachuspl won by resignation"]

1. d4 {[%clk 0:03:00.8]} 1... d5 {[%clk 0:02:58]} 2. c4 {[%clk 0:03:00.4]} 2...
e6 {[%clk 0:02:57.5]} 3. Nc3 {[%clk 0:02:59.6]} 3... c6 {[%clk 0:02:55.8]} 4. e4
{[%clk 0:02:56.2]} 4... dxe4 {[%clk 0:02:53.1]} 5. Nxe4 {[%clk 0:02:56.1]} 5...
Bb4+ {[%clk 0:02:49.4]} 6. Bd2 {[%clk 0:02:54.5]} 6... Qxd4 {[%clk 0:02:48.3]}
7. Bxb4 {[%clk 0:02:54.1]} 7... Qxe4+ {[%clk 0:02:47.1]} 8. Be2 {[%clk
0:02:54.4]} 8... Qxg2 {[%clk 0:02:44.4]} 9. Bf3 {[%clk 0:02:53.8]} 9... Qg5
{[%clk 0:02:44]} 10. Ne2 {[%clk 0:02:48.1]} 10... Nd7 {[%clk 0:02:33.2]} 11. Rg1
{[%clk 0:02:45.9]} 11... Qf6 {[%clk 0:02:30.7]} 12. Qd6 {[%clk 0:02:40.1]} 12...
Nh6 {[%clk 0:02:03.3]} 13. O-O-O {[%clk 0:02:28.9]} 13... Nf5 {[%clk 0:02:01.1]}
14. Qd2 {[%clk 0:02:14.3]} 14... Ne5 {[%clk 0:01:49.2]} 15. Be4 {[%clk
0:02:02.1]} 15... Nxc4 {[%clk 0:01:39.2]} 16. Qc2 {[%clk 0:01:59.9]} 16... Nb6
{[%clk 0:00:51.4]} 17. Bxc6+ {[%clk 0:01:46.4]} 17... bxc6 {[%clk 0:00:40.9]}
18. Qxc6+ {[%clk 0:01:45.8]} 18... Nd7 {[%clk 0:00:40.2]} 19. Qxa8 {[%clk
0:01:42.4]} 19... Qd8 {[%clk 0:00:31.4]} 20. Kb1 {[%clk 0:01:37.7]} 20... Ba6
{[%clk 0:00:21.3]} 21. Qe4 {[%clk 0:01:23.1]} 21... Qb8 {[%clk 0:00:14]} 22. Ba3
{[%clk 0:01:17]} 22... Qb5 {[%clk 0:00:09]} 23. Nc3 {[%clk 0:01:13.9]} 23... Qe5
{[%clk 0:00:06.1]} 24. Rxd7 {[%clk 0:01:05.2]} 24... Qxe4+ {[%clk 0:00:04.5]}
25. Nxe4 {[%clk 0:01:04.2]} 25... Kxd7 {[%clk 0:00:05.2]} 26. Nc5+ {[%clk
0:01:04.7]} 26... Kc6 {[%clk 0:00:04.8]} 27. Nxa6 {[%clk 0:01:05.6]} 27... Kb5
{[%clk 0:00:05.3]} 28. Nc5 {[%clk 0:01:04.7]} 28... Nd4 {[%clk 0:00:05.1]} 29.
Rxg7 {[%clk 0:01:03.1]} 29... Rc8 {[%clk 0:00:04]} 30. Rxf7 {[%clk 0:01:02.1]}
30... Rxc5 {[%clk 0:00:01.9]} 31. Bxc5 {[%clk 0:01:01.6]} 31... Kxc5 {[%clk
0:00:01.6]} 32. Rxh7 {[%clk 0:01:02.2]} 1-0